[Event "35th Staufer-Open-A 2025"]
[Site "Schwaebisch Gmuend"]
[Date "2025.01.05"]
[Round "8.1"]
[White "Visakh N R"]
[Black "Noe, Christopher"]
[Result "1/2-1/2"]
[ECO "D41"]
[WhiteElo "2501"]
[BlackElo "2509"]
[Annotator "TA"]
[PlyCount "78"]
[EventDate "2024.11.24"]
[EventType "swiss"]
[EventCountry "GER"]
[SourceTitle "playchess.com"]
[Source "ChessBase"]
[SourceQuality "1"]
[TimeControl "40/6000+30:1200+30"]

{[%evp 26,78,16,0,15,0,0,0,0,0,11,12,8,16,40,39,33,36,35,39,28,16,27,30,84,88,81,80,87,88,89,34,84,87,68,33,39,33,61,30,39,22,27,22,22,0,0,0,0,0,0,0,0,0,0]} 1. Nf3 {[%emt 0:00:04]} Nf6 {[%emt 0:00:52]} 2. c4 {[%emt 0:00:06]} c5 {[%emt 0:01:16]} 3. Nc3 {[%emt 0:00:12]} d5 {[%emt 0:03:31]} 4. cxd5 {[%emt 0:00:07]} Nxd5 {[%emt 0:00:05]} 5. e4 {[%emt 0:00:06]} Nxc3 {[%emt 0:00:04]} 6. bxc3 {[%emt 0:00:29]} e6 {[%emt 0:00:06]} 7. d4 {[%emt 0:02:23]} cxd4 {[%emt 0:00:07]} 8. cxd4 {[%emt 0:00:02]} Bb4+ {[%emt 0:00:07]} 9. Bd2 {[%emt 0:00:09]} Bxd2+ {[%emt 0:00:06]} 10. Qxd2 {[%emt 0:00:05]} O-O {[%emt 0:00:09]} 11. Bc4 {[%emt 0:04:36]} Nd7 {[%emt 0:01:53]} 12. O-O {[%emt 0:00:24]} b6 {[%emt 0:00:04]} 13. Rfe1 {[%emt 0:02:33]} Bb7 {[%emt 0:00:08]} 14. Rad1 {[%emt 0:00:07]} Rc8 {[%emt 0:04:11]} 15. Bb3 {[%emt 0:00:08]} Re8 {[%emt 0:14:13]} 16. h3 {[%emt 0:03:23]} h6 {[%emt 0:06:31]} 17. Re3 {[%emt 0:03:07]} Nf6 {[%emt 0:04:04]} 18. Qe2 {[%emt 0:00:48]} Qe7 {[%emt 0:05:29]} 19. Ne5 {[%emt 0:14:44]} Red8 {[%emt 0:03:25] [#]} 20. d5 $1 {[%emt 0:06:45]} Qc7 {[%emt 0:14:18]} (20... exd5 $2 21. exd5 Nxd5 22. Ng6 $16) 21. Ng4 {[%emt 0:00:12]} Nxg4 {[%emt 0:01:51]} 22. Qxg4 {[%emt 0:00:04]} exd5 {[%emt 0:00:17]} 23. exd5 {[%emt 0:00:26][%cal Be4d5,Bd5d6,Bd6d7][%mdl 32]} Qd6 $1 {[%emt 0:00:42] Wards off Qb4} 24. Rg3 {[%emt 0:01:45][%csl Gg3][%cal Rg4g7]} Qe5 {[%emt 0:09:36] [#]} (24... Qf6 $11 {keeps the balance.}) 25. d6 $1 $16 {[%emt 0:02:04]} Rc3 {[%emt 0:00:58] [#] Repels Re3} 26. Rxc3 $1 {[%emt 0:14:21]} Qxc3 {[%emt 0:00:03]} 27. d7 {[%emt 0:01:14]} Qf6 {[%emt 0:17:49] Repels Qh4} 28. Bd5 {[%emt 0:04:00] White has more active pieces. Black is weak on the light squares} ({White should try} 28. Qc4 $16) 28... Bc6 {[%emt 0:05:46]} (28... Bxd5 $14 29. Rxd5 Qe6) 29. Bxc6 {[%emt 0:02:57]} Qxc6 {[%emt 0:00:02][%mdl 4096] Endgame KQR-KQR} 30. Qf5 {[%emt 0:00:07]} f6 {[%emt 0:03:17]} 31. Rd4 {[%emt 0:08:39]} Kf7 {[%emt 0:02:39]} 32. Qd3 {[%emt 0:00:21]} b5 {[%emt 0:01:01]} 33. Qb3+ {[%emt 0:01:19]} Ke7 {[%emt 0:02:26]} 34. Qb4+ {[%emt 0:02:34]} Kf7 {[%emt 0:00:45]} 35. Rd6 {[%emt 0:01:18]} Qc1+ {[%emt 0:02:20]} 36. Kh2 {[%emt 0:00:01]} Qc4 {[%emt 0:00:15]} 37. Qd2 {[%emt 0:00:21]} Ke7 {[%emt 0:00:19] Hoping for ...Qc7.} 38. g3 {[%emt 0:00:40]} Qc7 {[%emt 0:00:25][%csl LRd6,LRd7]} 39. Rd5 {[%emt 0:07:32]} Rxd7 {[%emt 0:00:25]} 1/2-1/2

[Event "35th Staufer-Open-A 2025"]
[Site "Schwaebisch Gmuend"]
[Date "2025.01.05"]
[Round "8.2"]
[White "Peng, Li Min"]
[Black "Hagner, Bennet"]
[Result "1/2-1/2"]
[ECO "E51"]
[WhiteElo "2518"]
[BlackElo "2407"]
[Annotator "TA"]
[PlyCount "41"]
[EventDate "2024.11.24"]
[EventType "swiss"]
[EventCountry "GER"]
[SourceTitle "playchess.com"]
[Source "ChessBase"]
[SourceQuality "1"]
[TimeControl "40/6000+30:1200+30"]

{[%evp 13,41,0,0,0,9,0,0,0,4,6,5,0,0,0,0,-7,0,0,0,0,0,0,0,0,0,0,0,0,0,0]} 1. d4 {[%emt 0:02:33]} Nf6 {[%emt 0:00:03]} 2. c4 {[%emt 0:00:10]} e6 {[%emt 0:00:06]} 3. Nc3 {[%emt 0:00:05]} Bb4 {[%emt 0:00:05]} 4. e3 {[%emt 0:00:08]} O-O {[%emt 0:00:08]} 5. Bd2 {[%emt 0:00:04]} d5 {[%emt 0:00:22]} 6. Nf3 {[%emt 0:00:09]} b6 {[%emt 0:00:07]} 7. cxd5 {[%emt 0:00:08]} exd5 {[%emt 0:00:06]} 8. Rc1 {[%emt 0:00:06]} Bb7 {[%emt 0:00:06]} 9. Bd3 {[%emt 0:00:06]} Re8 {[%emt 0:00:10]} 10. O-O {[%emt 0:01:24]} Bf8 {[%emt 0:00:06]} 11. Ne5 {[%emt 0:00:16]} c5 {[%emt 0:00:07]} 12. f4 {[%emt 0:00:08]} Nc6 {[%emt 0:00:05]} 13. Ne2 {[%emt 0:00:07]} Rc8 {[%emt 0:00:12]} 14. Be1 {[%emt 0:10:04]} Ne4 {[%emt 0:07:14]} 15. Bxe4 {[%emt 0:00:19]} dxe4 {[%emt 0:00:19]} 16. Nxf7 {[%emt 0:00:05]} Kxf7 {[%emt 0:00:07]} 17. Qb3+ {[%emt 0:00:29]} c4 $1 {[%emt 0:00:05]} 18. Qxc4+ {[%emt 0:06:25]} Kg6 $1 {[%emt 0:00:10][%cal Oc6b4]} 19. f5+ {[%emt 0:00:06]} Kh6 {[%emt 0:00:06][%cal Oc6b4] Hoping for ...Nb4!.} 20. Bg3 {[%emt 0:00:07]} Ne5 {[%emt 0:00:29] Dodges Qf7} 21. Qg8 {[%emt 0:06:38]} 1/2-1/2

[Event "35th Staufer-Open-A 2025"]
[Site "Schwaebisch Gmuend"]
[Date "2025.01.05"]
[Round "8.3"]
[White "Stork, Oliver"]
[Black "Korneev, Oleg"]
[Result "1/2-1/2"]
[ECO "A28"]
[WhiteElo "2396"]
[BlackElo "2486"]
[Annotator "TA"]
[PlyCount "48"]
[EventDate "2024.11.24"]
[EventType "swiss"]
[EventCountry "GER"]
[SourceTitle "playchess.com"]
[Source "ChessBase"]
[SourceQuality "1"]
[TimeControl "40/6000+30:1200+30"]

{[%evp 11,48,-11,0,0,0,0,0,0,0,14,6,9,9,-34,0,0,29,29,39,12,90,89,95,65,105,54,88,80,91,72,72,85,88,50,36,0,0,-10,-8]} 1. c4 {[%emt 0:03:28]} e5 {[%emt 0:07:09]} 2. Nc3 {[%emt 0:01:33]} Nc6 {[%emt 0:00:01]} 3. Nf3 {[%emt 0:00:08]} Nf6 {[%emt 0:00:02]} 4. a3 {[%emt 0:00:08]} d5 {[%emt 0:00:21]} 5. cxd5 {[%emt 0:00:08]} Nxd5 {[%emt 0:00:05]} 6. Qc2 {[%emt 0:00:06]} Nxc3 {[%emt 0:00:44]} 7. dxc3 {[%emt 0:04:23]} Be7 {[%emt 0:00:52]} 8. e4 {[%emt 0:00:43]} Qd6 {[%emt 0:00:02]} 9. Bb5 {[%emt 0:34:51]} Qg6 {[%emt 0:04:21]} 10. O-O {[%emt 0:00:27]} Bh3 {[%emt 0:01:06][%csl Gh3][%cal Rg6g2]} 11. Ne1 {[%emt 0:00:05]} O-O {[%emt 0:02:22]} 12. f3 {[%emt 0:08:05]} Bd7 {[%emt 0:03:58][%cal Oc6d4]} 13. Nd3 {[%emt 0:06:44]} Nb4 {[%emt 0:23:02]} 14. axb4 {[%emt 0:04:48]} Bxb5 {[%emt 0:00:41]} 15. Nxe5 {[%emt 0:13:10]} Qd6 {[%emt 0:02:32] [#]} (15... Qb6+ $11 {keeps the balance.} 16. Rf2 Rad8) 16. Rd1 $1 $16 {[%emt 0:00:47]} Qe6 {[%emt 0:14:59][%cal Oa7a5]} 17. Ng4 {[%emt 0:07:09] White is more active.} f5 {[%emt 0:02:42]} 18. Nf2 {[%emt 0:00:33]} ({White should play} 18. exf5 $16 Rxf5 19. Be3) 18... Bd6 {[%emt 0:13:24]} 19. Be3 {[%emt 0:03:12]} b6 {[%emt 0:00:47]} 20. Re1 {[%emt 0:02:49]} f4 {[%emt 0:17:31]} 21. Bd2 {[%emt 0:06:17]} Bc4 {[%emt 0:00:22]} 22. Ra3 {[%emt 0:01:55]} c5 {[%emt 0:01:48]} 23. Nd3 {[%emt 0:00:21]} Rad8 {[%emt 0:01:34] ...Bxd3 would now be deadly.} 24. e5 {[%emt 0:00:45]} (24. Rxa7 $2 Bxd3 (24... Bb8 $2 25. Nxf4 Qd6 26. Rb7 $19) 25. Qc1 (25. Qxd3 $2 {too greedy.} Bb8 $19) 25... Bc4 $19) 24... Bxd3 {[%emt 0:14:10]} 1/2-1/2

[Event "35th Staufer-Open-A 2025"]
[Site "Schwaebisch Gmuend"]
[Date "2025.01.05"]
[Round "8.4"]
[White "Gschnitzer, Adrian"]
[Black "Kolb, Tobias"]
[Result "1/2-1/2"]
[ECO "B12"]
[WhiteElo "2442"]
[BlackElo "2342"]
[Annotator "TA"]
[PlyCount "21"]
[EventDate "2024.11.24"]
[EventType "swiss"]
[EventCountry "GER"]
[SourceTitle "playchess.com"]
[Source "ChessBase"]
[SourceQuality "1"]
[TimeControl "40/6000+30:1200+30"]

{[%evp 10,21,18,27,48,25,38,0,14,-18,-18,-18,-18,-26]} 1. e4 {[%emt 0:00:45]} c6 {[%emt 0:00:21]} 2. d4 {[%emt 0:00:08]} d5 {[%emt 0:00:03]} 3. e5 {[%emt 0:00:10]} Bf5 {[%emt 0:00:03]} 4. Nf3 {[%emt 0:00:12]} e6 {[%emt 0:00:08]} 5. Be2 {[%emt 0:00:07]} Ne7 {[%emt 0:00:37]} 6. O-O {[%emt 0:00:44]} Ng6 {[%emt 0:00:49]} 7. a4 {[%emt 0:00:19]} Nd7 {[%emt 0:02:01]} 8. Na3 {[%emt 0:05:28]} f6 {[%emt 0:13:38] The position is equal.} 9. exf6 {[%emt 0:01:52]} (9. Ne1 $5) 9... Qxf6 {[%emt 0:00:29]} 10. c4 {[%emt 0:01:27]} Bd6 {[%emt 0:02:03]} 11. Nc2 {[%emt 0:06:44] White did not feel at home in the position after the opening.   Weighted Error Value: White=0.19 (very precise) /Black=0.08 (flawless) .  Inaccurate:     	White=1     	---        OK:         	---       	Black=1      Best:        	---       	Black=1} 1/2-1/2

[Event "35th Staufer-Open-A 2025"]
[Site "Schwaebisch Gmuend"]
[Date "2025.01.05"]
[Round "8.5"]
[White "Langheinrich, Ferenc"]
[Black "Lu, Miaoyi"]
[Result "1/2-1/2"]
[ECO "C67"]
[WhiteElo "2338"]
[BlackElo "2429"]
[Annotator "TA"]
[PlyCount "31"]
[EventDate "2024.11.24"]
[EventType "swiss"]
[EventCountry "GER"]
[SourceTitle "playchess.com"]
[Source "ChessBase"]
[SourceQuality "1"]
[TimeControl "40/6000+30:1200+30"]

{[%evp 18,31,19,21,23,16,17,8,18,9,16,7,14,13,9,0]} 1. e4 {[%emt 0:00:20]} e5 {[%emt 0:00:02]} 2. Nf3 {[%emt 0:00:14]} Nc6 {[%emt 0:00:02]} 3. Bb5 {[%emt 0:00:16]} Nf6 {[%emt 0:00:06]} 4. O-O {[%emt 0:01:27][%cal Bh1f1,Bf1e1,Be1e5][%mdl 32]} Nxe4 {[%emt 0:00:04]} 5. Re1 {[%emt 0:02:18]} Nd6 {[%emt 0:00:04]} 6. Nxe5 {[%emt 0:00:07]} Be7 {[%emt 0:00:06]} 7. Bf1 {[%emt 0:00:18]} Nxe5 {[%emt 0:00:03]} 8. Rxe5 {[%emt 0:00:07]} O-O {[%emt 0:00:07]} 9. d4 {[%emt 0:00:14]} Bf6 {[%emt 0:00:51]} 10. Re1 {[%emt 0:01:54]} Re8 {[%emt 0:00:04]} 11. Rxe8+ {[%emt 0:05:35]} Nxe8 {[%emt 0:00:12] The position is equal.} 12. c3 {[%emt 0:01:47]} d5 {[%emt 0:00:12]} 13. Bf4 {[%emt 0:01:13]} g6 {[%emt 0:07:08]} 14. Nd2 {[%emt 0:02:45]} Ng7 {[%emt 0:00:15]} 15. Nf3 {[%emt 0:00:51]} c6 {[%emt 0:01:16]} 16. a4 {[%emt 0:01:39] A rather calm draw.   Weighted Error Value: White=0.01 (flawless) /Black=0.03 (flawless) .  OK:         	White=3     	Black=1} 1/2-1/2

[Event "35th Staufer-Open-A 2025"]
[Site "Schwaebisch Gmuend"]
[Date "2025.01.05"]
[Round "8.6"]
[White "Senthil Maran K"]
[Black "Toktomushev, Teimur"]
[Result "1/2-1/2"]
[ECO "E06"]
[WhiteElo "2398"]
[BlackElo "2262"]
[Annotator "TA"]
[PlyCount "60"]
[EventDate "2024.11.24"]
[EventType "swiss"]
[EventCountry "GER"]
[SourceTitle "playchess.com"]
[Source "ChessBase"]
[SourceQuality "1"]
[TimeControl "40/6000+30:1200+30"]

{[%evp 14,60,13,8,12,0,0,-41,-29,-41,-30,-28,-20,-23,-8,-19,-13,-16,-5,-18,-14,-19,-25,-12,-16,-35,-18,-16,-16,-77,-47,-53,-75,-60,-35,-33,-29,-20,-20,-20,-18,-6,-4,-4,-7,-4,-4,-5,-6]} 1. c4 {[%emt 0:12:46]} e6 {[%emt 0:00:13]} 2. g3 {[%emt 0:05:21]} d5 {[%emt 0:00:09]} 3. Bg2 {[%emt 0:00:10]} Nf6 {[%emt 0:00:14]} 4. Nf3 {[%emt 0:00:12][%cal Bg1f3,Bf3e5,Be5c6][%mdl 32]} Be7 {[%emt 0:00:10]} 5. d4 {[%emt 0:00:09]} O-O {[%emt 0:00:11]} 6. O-O {[%emt 0:00:07]} c6 {[%emt 0:00:16][%cal Bc7c6,Bc6c5][%mdl 32]} 7. Qc2 {[%emt 0:00:09]} b6 {[%emt 0:00:11]} 8. Nbd2 {[%emt 0:00:09]} c5 {[%emt 0:00:20]} 9. Ne5 {[%emt 0:06:48]} Bb7 {[%emt 0:06:55]} 10. Ndf3 {[%emt 0:04:30]} Nbd7 {[%emt 0:10:17]} 11. Bf4 {[%emt 0:09:17]} cxd4 {[%emt 0:23:31]} (11... Rc8 {simplifies} 12. dxc5 Bxc5 13. Rad1 Nxe5 14. Bxe5 Qe7) 12. cxd5 {[%emt 0:30:02]} Nxd5 {[%emt 0:01:37]} 13. Nxd4 {[%emt 0:15:04]} Rc8 {[%emt 0:26:45]} 14. Nec6 {[%emt 0:05:57]} Nxf4 {[%emt 0:05:27]} 15. gxf4 {[%emt 0:00:32]} Qe8 {[%emt 0:00:37]} 16. Qa4 {[%emt 0:05:49]} a6 {[%emt 0:09:40]} 17. Nxe7+ {[%emt 0:02:53]} Qxe7 {[%emt 0:00:06]} 18. Bxb7 {[%emt 0:00:03]} Nc5 $1 {[%emt 0:00:10][%csl LRa4,LRb7]} 19. Qb4 {[%emt 0:00:35]} Qxb7 {[%emt 0:00:07]} (19... Nxb7 $2 {loses.} 20. Qxe7 Nc5 21. Rfc1 $18) 20. Nf3 {[%emt 0:00:15]} a5 {[%emt 0:05:53]} 21. Qa3 {[%emt 0:01:29]} (21. Qd2 $11) 21... Na6 {[%emt 0:05:45][%cal Bc5a6,Ba6b4,Bb4d5][%mdl 32]} 22. Rac1 {[%emt 0:01:54]} Nb4 {[%emt 0:02:14]} 23. Ne5 {[%emt 0:01:24]} h6 {[%emt 0:03:57]} 24. Qb3 {[%emt 0:01:12]} Qe4 {[%emt 0:02:58][%csl LRe2,LRf4] White must now prevent ...Rxc1.} 25. e3 {[%emt 0:00:23]} Nd5 {[%emt 0:03:25]} 26. Qd3 {[%emt 0:02:41]} Qxd3 {[%emt 0:00:18]} 27. Nxd3 {[%emt 0:00:06]} Rfd8 {[%emt 0:00:17]} 28. Rxc8 {[%emt 0:01:33]} Rxc8 {[%emt 0:00:04]} 29. Rc1 {[%emt 0:00:05]} Rxc1+ {[%emt 0:01:03]} 30. Nxc1 {[%emt 0:00:05]} Kf8 {[%emt 0:00:22]} 1/2-1/2

[Event "35th Staufer-Open-A 2025"]
[Site "Schwaebisch Gmuend"]
[Date "2025.01.05"]
[Round "8.7"]
[White "Dgebuadze, Alexandre"]
[Black "Schmitz, Thorsten"]
[Result "1-0"]
[ECO "C60"]
[WhiteElo "2414"]
[BlackElo "2244"]
[Annotator "TA"]
[PlyCount "35"]
[EventDate "2024.11.24"]
[EventType "swiss"]
[EventCountry "GER"]
[SourceTitle "playchess.com"]
[Source "ChessBase"]
[SourceQuality "1"]
[TimeControl "40/6000+30:1200+30"]

{[%evp 9,35,20,22,9,31,0,65,52,51,56,93,38,31,30,49,56,283,271,279,281,258,288,598,591,494,363,375,333]} 1. e4 {[%emt 0:00:23]} e5 {[%emt 0:00:06]} 2. Nf3 {[%emt 0:00:39]} Nc6 {[%emt 0:00:10]} 3. Bb5 {[%emt 0:00:11]} g6 {[%emt 0:00:07]} 4. c3 {[%emt 0:04:09]} a6 {[%emt 0:00:31]} 5. Bc4 {[%emt 0:01:05]} Bg7 {[%emt 0:00:24]} 6. d4 {[%emt 0:00:27]} b5 {[%emt 0:01:58]} 7. Bd5 {[%emt 0:03:34]} exd4 {[%emt 0:12:55]} (7... Nge7 $1 $11) 8. Ng5 $14 {[%emt 0:04:30] White is more active.} (8. Nxd4 Nge7 $11) 8... Nh6 {[%emt 0:02:45]} 9. cxd4 {[%emt 0:00:46]} Bxd4 {[%emt 0:11:37] [#]} 10. Nc3 {[%emt 0:06:24]} (10. e5 $1 $16 {and Nf3 should not be overlooked} O-O (10... Bxe5 11. O-O $16) 11. Ne4) 10... Bg7 {[%emt 0:06:47]} 11. O-O $36 {[%emt 0:05:06][%mdl 2048] White fights for an advantage.} Rb8 {[%emt 0:16:50]} 12. Nf3 {[%emt 0:10:15]} f6 $2 {[%emt 0:17:53] [#] Prevents Bg5.} (12... O-O $14) 13. e5 $1 $18 {[%emt 0:06:13]} Nxe5 {[%emt 0:02:34]} 14. Nxe5 {[%emt 0:02:35]} fxe5 {[%emt 0:00:05]} 15. Ne4 {[%emt 0:00:06][%cal Bc3e4,Be4d6,Bd6f5][%mdl 32]} c6 $2 {[%emt 0:10:54]} (15... Nf7 {is more resistant.} 16. Bxf7+ Kxf7) 16. Nd6+ {[%emt 0:02:34]} Kf8 {[%emt 0:00:32]} 17. Bb3 {[%emt 0:01:19]} Nf5 {[%emt 0:00:48]} 18. Nxf5 {[%emt 0:00:43]} 1-0

[Event "35th Staufer-Open-A 2025"]
[Site "Schwaebisch Gmuend"]
[Date "2025.01.05"]
[Round "8.8"]
[White "Harshavardhan G B"]
[Black "Lesny, Florian"]
[Result "1-0"]
[ECO "D37"]
[WhiteElo "2405"]
[BlackElo "2232"]
[Annotator "TA"]
[PlyCount "85"]
[EventDate "2024.11.24"]
[EventType "swiss"]
[EventCountry "GER"]
[SourceTitle "playchess.com"]
[Source "ChessBase"]
[SourceQuality "1"]
[TimeControl "40/6000+30:1200+30"]

{[%evp 9,85,28,25,-2,15,23,16,4,0,8,0,6,67,72,72,72,73,6,10,19,14,0,0,0,0,0,0,0,0,0,0,0,0,0,18,84,68,-11,109,94,104,78,80,81,147,134,142,124,142,137,136,131,158,158,154,154,154,139,140,139,206,214,231,226,226,207,385,389,441,429,400,400,705,896,753,748,702,493]} 1. d4 {[%emt 0:06:47]} d5 {[%emt 0:00:11]} 2. c4 {[%emt 0:00:30]} e6 {[%emt 0:00:09]} 3. Nc3 {[%emt 0:00:14]} Nf6 {[%emt 0:00:11]} 4. Nf3 {[%emt 0:00:08]} a6 {[%emt 0:00:33]} 5. cxd5 {[%emt 0:00:08]} exd5 {[%emt 0:00:14]} 6. Qb3 {[%emt 0:00:14]} c5 {[%emt 0:07:55]} 7. Bg5 {[%emt 0:00:12]} c4 {[%emt 0:00:21]} 8. Qc2 {[%emt 0:00:08] The position is equal.} Bb4 {[%emt 0:00:58]} 9. e4 {[%emt 0:01:02]} dxe4 {[%emt 0:05:03]} 10. Bxf6 {[%emt 0:00:12]} Bxc3+ {[%emt 0:01:03]} (10... Qxf6 $11 11. Qxe4+ Qe6) 11. bxc3 $14 {[%emt 0:00:14]} Qxf6 {[%emt 0:00:27]} 12. Qxe4+ {[%emt 0:00:08]} Qe6 {[%emt 0:01:18]} 13. Ne5 {[%emt 0:01:28] White is more active.} (13. Ng5 $16 Qxe4+ 14. Nxe4) 13... f6 $1 $11 {[%emt 0:01:43]} 14. Bxc4 {[%emt 0:01:28]} Qe7 {[%emt 0:00:14] [#]} 15. O-O $1 {[%emt 0:00:08]} fxe5 {[%emt 0:03:05]} 16. f4 {[%emt 0:01:08][%cal Bf2f4,Bf4e5,Be5e6][%mdl 32]} (16. dxe5 Nd7 17. f4 Nc5 $19) 16... g6 $1 {[%emt 0:01:54]} (16... exd4 17. Qxd4 Nc6 18. Qb6 $18) 17. fxe5 {[%emt 0:00:08]} (17. dxe5 Bf5 18. Qe3 Nd7 $19) 17... Bf5 {[%emt 0:00:19]} 18. Qe3 $36 {[%emt 0:00:10][%cal Og2g4][%mdl 2048] White has some pressure.} Nc6 {[%emt 0:11:40]} 19. d5 {[%emt 0:15:00]} Na5 {[%emt 0:00:48]} (19... Nxe5 20. Rae1 $14) (19... Qxe5 $2 20. Qb6 O-O 21. dxc6+ Kh8 22. cxb7 $18 (22. Qxb7 $2 Qc5+ 23. Kh1 Qxc4 $19)) 20. Be2 {[%emt 0:01:08] Black must now prevent g4.} O-O {[%emt 0:01:24]} 21. e6 {[%emt 0:20:40]} Rac8 {[%emt 0:21:42]} 22. g4 {[%emt 0:05:30]} Bc2 {[%emt 0:01:02]} 23. Rac1 {[%emt 0:06:52]} ({Better is} 23. Rxf8+ $1 $14 Rxf8 24. Rf1) 23... Rxf1+ {[%emt 0:10:08]} (23... Ba4 $1 $11 {remains equal.}) 24. Rxf1 $16 {[%emt 0:04:38] Strongly threatening Rf7. Black is on the road to losing.} ({Of course not} 24. Bxf1 $6 Ba4 $11) 24... Nc4 {[%emt 0:03:38]} 25. Bxc4 {[%emt 0:16:48]} Rxc4 {[%emt 0:01:50]} 26. h3 {[%emt 0:00:08]} Qc5 {[%emt 0:09:19]} (26... Re4 $142 27. Qg3 Qc5+ 28. Kh1 Ra4 (28... Qxd5 29. Qb8+) 29. Qb8+ Kg7) 27. Qxc5 {[%emt 0:02:02]} Rxc5 {[%emt 0:00:12][%mdl 4096] Endgame. KRB-KR} 28. d6 {[%emt 0:00:42][%cal Bd5d6,Bd6d7][%mdl 32] White threatens d7 and mate.} Rd5 {[%emt 0:02:19]} 29. d7 {[%emt 0:04:16] Intending e7 and mate.} Ba4 {[%emt 0:01:10][%cal Oa4d7]} 30. c4 $1 {[%emt 0:03:08]} Rd2 {[%emt 0:03:58][%cal Oa4d7]} 31. Rf7 {[%emt 0:00:36]} Bxd7 {[%emt 0:05:36]} ({Weaker is} 31... Rxa2 32. d8=Q+) 32. Rxd7 {[%emt 0:00:40] KR-KR} Re2 {[%emt 0:00:15]} 33. Rxb7 {[%emt 0:00:14]} Rxe6 {[%emt 0:00:11] [#]} 34. Kf2 $1 {[%emt 0:02:20] Repels Re3} Rc6 {[%emt 0:08:00]} (34... h5 $16) 35. Rb4 $18 {[%emt 0:00:08]} h5 {[%emt 0:02:03] [#]} 36. gxh5 {[%emt 0:01:26]} gxh5 {[%emt 0:00:10]} 37. Ke3 {[%emt 0:00:06]} Rc5 $2 {[%emt 0:02:27]} (37... Kf7 {is a better defense.} 38. Kd4 Rd6+ 39. Kc5 Rf6) 38. Kd4 {[%emt 0:02:58]} Rg5 {[%emt 0:00:38]} 39. Rb3 {[%emt 0:05:42]} Kf7 {[%emt 0:01:52]} 40. Re3 {[%emt 0:00:24] Hoping for c5.} Rg1 {[%emt 0:02:10]} (40... Rg2 $142 41. a4 Rd2+ 42. Kc5 h4) 41. c5 {[%emt 0:20:38] White is clearly winning.} Rc1 {[%emt 0:22:09]} 42. Kd5 {[%emt 0:01:12] And now c6 would win.} Rc2 {[%emt 0:00:14]} 43. a3 {[%emt 0:00:42] Weighted Error Value: White=0.09 (flawless) /Black=0.20 (precise) .  Mistake:       	White=2     	Black=6      OK:         	White=22    	Black=11     Best:        	White=6     	Black=7      Strong:       	White=1     	Black=2} 1-0